bitfinex/quotes_ETHUSD_20210701
["timestamp","ask_amount","ask_price","bid_price","bid_amount"]
[1625142694699,0.19677508,2118.6,2118.1,0.12]
[1625142694950,0.06738298,2118.5,2118.1,0.12]
[1625142695042,0.00667367,2118.3,2117.9,7.04399508]
[1625142696637,0.00667367,2118.3,2117.9,7.19399508]
[1625142697535,0.00667367,2118.3,2118.0,0.06]
[1625142697737,0.00667346,2118.2,2118.0,3.5979]
[1625142698239,0.00667346,2118.2,2118.0,3.5379]
[1625142700134,0.0066663,2118.2,2118.0,3.5379]
[1625142701605,0.0066663,2118.2,2118.1,0.04]
[1625142703289,0.0066663,2118.2,2118.1,0.19]
[1625142703388,7.09393675,2119.0,2118.1,4.5185]
[1625142703497,0.01877675,2119.0,2118.1,6.95225546]
[1625142703594,0.01877675,2119.0,2118.2,0.2]
[1625142703838,0.01877675,2119.0,2118.3,0.15]
[1625142704184,0.01877675,2119.0,2118.5,7.0739998]
[1625142704539,0.01877675,2119.0,2118.5,7.2239998]
[1625142704890,0.01877675,2119.0,2118.5,10.7611598]
[1625142704986,0.01877675,2119.0,2118.6,0.2]
[1625142705235,0.01877675,2119.0,2118.7,0.15]
[1625142705436,0.01877675,2119.0,2118.8,0.12]
[1625142705684,0.01877675,2119.0,2118.9,0.06]
[1625142706191,0.01877675,2119.0,2118.8,7.0727722]
[1625142708197,0.01877675,2119.0,2118.8,7.07968673]
[1625142708699,11.79358,2119.7,2119.0,0.01877675]
[1625142708797,11.79358,2119.7,2119.1,3.5367652]
[1625142708902,4.88555051,2119.9,2119.0,0.01877675]
[1625142709447,0.15145857,2119.6,2119.0,0.01877675]
[1625142710044,0.15145857,2119.6,2119.0,3.55559675]
[1625142710143,7.07344,2119.5,2119.1,3.5367652]
[1625142711492,0.15145857,2119.6,2119.1,7.0732152]
[1625142711646,0.15145857,2119.6,2119.1,12.9810152]
[1625142711741,0.15145857,2119.6,2119.2,0.14]
[1625142712590,0.15145857,2119.6,2119.2,7.21152]
[1625142712689,0.15145857,2119.6,2119.3,0.15]
[1625142712891,0.15145857,2119.6,2119.3,5.02404]
[1625142713040,0.15145857,2119.6,2119.4,0.14]
[1625142713139,0.15145857,2119.6,2119.4,0.29]
[1625142713391,0.15145857,2119.6,2119.4,3.8255518]
[1625142713742,0.15145857,2119.6,2119.4,10.8965218]
[1625142713941,0.15145857,2119.6,2119.5,0.2]
[1625142714344,0.15145857,2119.6,2119.5,0.35]
[1625142716888,0.15145857,2119.6,2119.5,2.78375546]
[1625142717239,0.02824347,2120.0,2119.5,2.78375546]
[1625142717338,0.02824347,2120.0,2119.7,7.06836]
[1625142717440,0.02824347,2120.0,2119.7,10.6025398]
[1625142717540,0.02824347,2120.0,2119.8,0.15]
[1625142718041,0.0749342,2120.5,2119.8,0.15]
[1625142718247,0.0749342,2120.5,2120.2,3.5336413]
[1625142718344,0.0749342,2120.5,2120.2,6.9633413]
[1625142718445,0.0749342,2120.5,2120.3,7.06715]
[1625142718550,0.0749342,2120.5,2120.4,0.15]
[1625142718750,0.0749342,2120.5,2120.4,0.35]
[1625142719934,0.0749342,2120.5,2120.4,2.78375546]
[1625142720486,0.03957054,2121.0,2120.4,2.78375546]
[1625142720585,0.03957054,2121.0,2120.6,7.0649666]
[1625142720737,0.03957054,2121.0,2120.8,7.06492]
[1625142720838,0.03957054,2121.0,2120.8,12.07492]
[1625142720938,0.03957054,2121.0,2120.9,0.2]
[1625142721135,0.03957054,2121.0,2120.9,0.35]
[1625142723056,0.03957054,2121.0,2120.9,5.08318762]
[1625142723158,0.07106297,2121.5,2120.9,5.08318762]
[1625142723260,7.00163938,2122.0,2120.9,7.51694308]
[1625142723406,7.00163938,2122.0,2121.0,3.53223]
[1625142723407,6.95,2121.5,2121.0,3.53223]
[1625142723550,6.95,2121.5,2121.0,3.73223]
[1625142723648,6.95,2121.5,2121.1,0.35]
[1625142723749,6.95,2121.5,2121.1,6.31598546]
[1625142724097,6.95,2121.5,2121.3,3.53215]
[1625142724301,7.00163938,2122.0,2121.4,0.23]
[1625142724400,7.00163938,2122.0,2121.4,4.7407]
[1625142724503,6.98933445,2122.0,2121.4,4.7407]
[1625142724602,6.98933445,2122.0,2121.4,4.6607]
[1625142724708,6.98933445,2122.0,2121.4,11.72432]
[1625142724801,6.98933445,2122.0,2121.4,8.92840179]
[1625142725119,6.98933445,2122.0,2121.4,10.92840179]
[1625142725217,6.98933445,2122.0,2121.4,12.23680179]
[1625142725518,6.98933445,2122.0,2121.5,0.15]
[1625142726465,6.98933445,2122.0,2121.6,0.1]
[1625142726667,6.98933445,2122.0,2121.7,0.15]
[1625142726768,6.98933445,2122.0,2121.8,2.0]
[1625142726966,6.98933445,2122.0,2121.9,0.15]
[1625142727117,7.10905326,2122.0,2121.9,0.15]
[1625142727266,0.15905326,2122.0,2121.8,2.0]
[1625142727366,0.15905326,2122.0,2121.9,0.15]
[1625142727567,0.10905326,2122.0,2121.9,0.15]
[1625142729667,0.10905326,2122.0,2121.9,0.35]
[1625142729861,0.10905326,2122.0,2121.8,2.03424481]
[1625142730632,0.10905326,2122.0,2121.8,0.03424481]
[1625142731234,0.10905326,2122.0,2121.8,0.04108698]
[1625142732707,0.15117245,2122.0,2121.8,0.04108698]
[1625142733362,0.15117245,2122.0,2121.8,1.01628698]
[1625142733560,0.15117245,2122.0,2121.9,0.35]
[1625142733662,0.15117245,2122.0,2121.9,4.5565]
[1625142734410,0.06276841,2122.5,2121.9,4.5565]
[1625142734714,0.06276841,2122.5,2121.9,4.3565]
[1625142736875,0.06276841,2122.5,2121.9,7.8874255]
[1625142737216,0.06276841,2122.5,2121.9,3.69408377]
[1625142737463,0.06276841,2122.5,2122.0,0.15]
[1625142737616,0.06276841,2122.5,2122.0,0.21]
[1625142737771,7.01276841,2122.5,2122.0,0.21]
[1625142737862,7.01276841,2122.5,2122.1,7.0613]
[1625142738063,7.01276841,2122.5,2122.2,0.15]
[1625142738165,7.01276841,2122.5,2122.2,3.6802]
[1625142738415,7.01276841,2122.5,2122.3,0.08]
[1625142738569,0.11182236,2122.5,2122.3,3.6100714]
[1625142738668,0.11182236,2122.5,2122.4,0.15]
[1625142738765,0.11182236,2122.5,2122.4,3.7503]
[1625142738866,0.11182236,2122.5,2122.4,3.9303]
[1625142739384,0.02235068,2122.7,2122.4,3.9303]
[1625142739614,0.02235068,2122.7,2122.4,7.46011]
[1625142739714,80.83519858,2124.2,2122.4,7.46011]
[1625142739821,0.02233957,2123.9,2122.5,0.26796832]
[1625142740048,0.02233957,2123.9,2122.6,0.15]
[1625142740141,6.97233957,2123.9,2122.6,0.15]
[1625142740242,6.97233957,2123.9,2122.7,3.57129907]
[1625142740342,6.97233957,2123.9,2122.7,3.58]
[1625142740445,6.97233957,2123.9,2123.2,3.52849]
[1625142740643,6.97233957,2123.9,2123.3,0.15]
[1625142740989,6.97233957,2123.9,2123.2,3.52849]
[1625142741091,6.97233957,2123.9,2123.4,0.04]
[1625142741195,6.97233957,2123.9,2123.5,0.15]
[1625142741634,6.97233957,2123.9,2123.2,3.67849]
[1625142743488,6.97233957,2123.9,2123.2,0.15]
[1625142743916,6.97233957,2123.9,2123.2,0.15680269]
[1625142743918,0.02233957,2123.9,2123.2,0.15680269]
[1625142744017,0.13409313,2123.9,2123.2,0.15680269]
[1625142745473,0.13409313,2123.9,2123.3,3.52864]
[1625142745717,0.13409313,2123.9,2123.4,0.27]
[1625142746139,0.02233957,2123.9,2123.0,0.15]
[1625142746785,0.02233957,2123.9,2123.0,2.52609048]
[1625142747187,0.02233957,2123.9,2123.4,7.05684]
[1625142747442,0.02233957,2123.9,2123.1,13.02689556]
[1625142747537,0.02233957,2123.9,2123.5,0.15743556]
[1625142747639,0.02233957,2123.9,2123.6,0.15]
[1625142748088,0.02233957,2123.9,2123.6,0.19]
[1625142748190,0.02233957,2123.9,2123.6,9.55752]
[1625142748676,0.02233957,2123.9,2123.6,9.71495556]
[1625142749228,3.91,2124.7,2123.6,9.71495556]
[1625142749430,3.91,2124.7,2123.7,3.54556453]
[1625142749529,3.91,2124.7,2123.8,0.03106573]
[1625142749629,3.91,2124.7,2123.8,0.36106573]
[1625142749729,3.91,2124.7,2123.8,2.70609048]
[1625142749888,3.91,2124.7,2124.0,3.46]
[1625142750180,3.91,2124.7,2124.1,0.21]
[1625142750381,3.91,2124.7,2124.1,4.6029]
[1625142750481,3.91,2124.7,2124.3,7.05371]
[1625142750650,3.91,2124.7,2124.3,7.20371]
[1625142751039,3.91,2124.7,2124.3,0.22349775]
[1625142751841,2.989,2124.7,2124.3,0.22349775]
[1625142751942,2.989,2124.7,2124.3,6.05958823]
[1625142752040,16.83,2125.7,2124.4,0.18]
[1625142752138,16.83,2125.7,2124.5,0.06833203]
[1625142752239,16.83,2125.7,2124.6,3.46]
[1625142752341,0.02233311,2126.1,2124.6,3.46]
[1625142752443,0.02233311,2126.1,2124.7,0.22087742]
[1625142752591,0.02233311,2126.1,2124.7,0.15]
[1625142752887,7.05195,2126.0,2124.7,0.15]
[1625142752986,9.42560311,2126.1,2124.7,0.15]
[1625142753085,9.42560311,2126.1,2124.7,2.52609048]
[1625142753086,0.02233311,2126.1,2124.7,2.52609048]
[1625142753684,0.02233311,2126.1,2124.7,0.15]
[1625142754286,7.05245,2125.9,2125.0,50.0]
[1625142754387,0.02233311,2126.1,2125.0,50.0]
[1625142754487,0.02233311,2126.1,2125.1,0.15]
[1625142755179,0.02233311,2126.1,2125.0,46.54276955]
[1625142755520,9.42534311,2126.1,2125.0,46.54276955]
[1625142755620,4.5487,2126.0,2125.0,46.54276955]
[1625142755720,4.5487,2126.0,2125.1,0.15]
[1625142756219,4.5487,2126.0,2125.0,39.71465036]
[1625142756320,4.5487,2126.0,2125.1,0.15]
[1625142757028,19.5487,2126.0,2125.1,0.15]
[1625142757175,0.14,2125.9,2125.0,39.71465036]
[1625142757431,0.04,2125.8,2125.0,39.71465036]
[1625142757532,0.15,2125.7,2125.0,35.52727838]
[1625142757633,3.52761,2125.5,2125.0,19.71767838]
[1625142757735,7.21192588,2125.3,2125.0,19.71767838]
[1625142757888,15.0,2125.2,2125.0,19.71767838]
[1625142758031,12.24747639,2125.3,2124.2,0.00759972]
[1625142758032,27.24747639,2125.3,2124.2,0.00759972]
[1625142758136,27.24747639,2125.3,2124.5,0.06017087]
[1625142758137,7.05639,2124.8,2124.5,0.06017087]
[1625142758537,9.40867,2125.2,2124.5,0.06017087]
[1625142758634,14.36141,2125.5,2124.6,0.15]
[1625142758730,10.8338,2125.5,2124.6,3.258]
[1625142758832,6.95,2125.8,2124.6,3.258]
[1625142759183,7.05328,2125.6,2124.6,3.258]
[1625142759284,6.95,2125.8,2124.6,3.258]
[1625142759389,6.95,2125.8,2124.6,5.63409048]
[1625142759681,6.95,2125.8,2125.1,0.00672258]
[1625142759776,6.95,2125.8,2125.2,0.15]
[1625142760927,6.95,2125.8,2125.2,7.19998]
[1625142761279,6.95,2125.8,2125.2,0.22251973]
[1625142761780,7.06161309,2125.8,2125.2,0.22251973]
[1625142762126,7.06161309,2125.8,2125.1,0.00672258]
[1625142762223,7.06161309,2125.8,2125.3,0.15]
[1625142766085,7.05256,2125.6,2125.3,0.15]
[1625142766236,7.05256,2125.6,2124.8,0.15]
[1625142766525,0.06,2125.5,2124.8,0.15]
[1625142766626,7.05256,2125.6,2124.5,0.06017087]
[1625142766723,7.04148635,2125.6,2124.6,0.15]
[1625142767375,7.15312127,2125.6,2124.5,0.06017087]
[1625142767478,11.61912127,2125.6,2124.5,0.06017087]
[1625142767579,0.01406822,2125.5,2124.7,0.00687127]
[1625142767729,5.50933492,2125.6,2124.3,19.89354341]
[1625142768330,7.05449,2125.0,2124.3,19.89354341]
[1625142768429,7.05449,2125.0,2124.3,9.86694341]
[1625142769027,0.04229668,2125.5,2124.4,0.15]
[1625142769132,0.11163492,2125.6,2124.9,3.46]
[1625142769387,0.11163492,2125.6,2124.9,3.3465]
[1625142769388,0.00687127,2125.2,2124.9,3.3465]
[1625142769483,0.00687127,2125.2,2124.9,10.3974]
[1625142769683,0.00687127,2125.2,2125.0,0.33]
[1625142769830,0.00687127,2125.2,2125.1,3.46]
[1625142769930,0.00687127,2125.2,2125.1,5.46789768]
[1625142770216,0.00687127,2125.2,2125.1,7.84398816]
[1625142770313,0.62316794,2126.5,2125.1,8.17398816]
[1625142770416,0.62316794,2126.5,2125.1,4.71398816]
[1625142770566,0.62316794,2126.5,2125.8,3.46]
[1625142770668,0.62316794,2126.5,2125.9,7.04745]
[1625142770815,0.62316794,2126.5,2126.0,3.46]
[1625142771064,0.62316794,2126.5,2126.0,0.82049675]
[1625142771269,0.62316794,2126.5,2126.0,1.00049675]
[1625142771468,0.62316794,2126.5,2126.0,3.37658723]
[1625142771773,0.62316794,2126.5,2126.1,7.04543]
[1625142771868,0.62316794,2126.5,2126.1,22.04543]
[1625142771969,0.62316794,2126.5,2126.4,3.46]
[1625142772069,0.62316794,2126.5,2126.4,8.0073]
[1625142772272,22.38111,2128.7,2126.4,25.0073]
[1625142772372,11.0826,2128.6,2126.4,25.16550606]
[1625142772478,11.0826,2128.6,2127.1,3.46]
[1625142772624,11.0826,2128.6,2127.2,0.05498053]
[1625142772721,11.74316,2128.9,2127.2,0.0641568]
[1625142772830,7.04383,2128.6,2127.3,0.15]
[1625142772930,15.0,2128.6,2126.8,3.54107006]
[1625142773020,15.0,2128.6,2126.9,2.0]
[1625142773204,0.12,2128.5,2126.9,2.0]
[1625142773299,0.12,2128.5,2127.0,0.15]
[1625142773450,2.35789084,2128.6,2127.0,0.15]
[1625142773649,17.35789084,2128.6,2127.0,0.15]
[1625142773750,2.35789084,2128.6,2127.0,0.15]
[1625142773954,7.04507,2128.1,2127.0,0.15]
[1625142775882,9.39332,2128.5,2127.0,0.15]
[1625142775979,0.51905445,2128.7,2127.0,4.0773]
[1625142776431,0.51905445,2128.7,2127.1,0.02403262]
[1625142776581,22.27916,2128.9,2127.3,0.15]
[1625142776582,7.0438,2128.5,2127.3,0.15]
[1625142776686,11.74316,2128.9,2127.3,0.15]
[1625142776831,9.39174,2129.1,2127.4,0.05594314]
[1625142776980,9.39174,2129.1,2127.5,0.15]
[1625142777077,9.39174,2129.1,2127.5,5.2239]
[1625142777279,9.39174,2129.1,2127.5,5.1839]
[1625142777432,9.39174,2129.1,2127.7,0.15]
[1625142777803,9.39174,2129.1,2127.6,0.01099735]
[1625142777804,9.39174,2129.1,2127.5,1.01323623]
[1625142777901,9.39174,2129.1,2127.6,0.15]
[1625142778155,7.04259,2128.9,2127.7,7.04177]
[1625142779855,9.39174,2129.1,2127.7,7.04177]
[1625142779958,7.56075445,2129.2,2127.7,7.04177]
[1625142780059,0.51905445,2129.2,2127.8,0.15]
[1625142780263,0.51905445,2129.2,2127.8,0.16030713]
[1625142780362,0.51905445,2129.2,2129.0,0.312]
[1625142780512,0.51905445,2129.2,2127.4,0.10874676]
[1625142780614,0.51905445,2129.2,2127.3,12.85007]
[1625142780615,0.51905445,2129.2,2128.1,0.15]
[1625142780617,3.52201,2129.1,2128.1,0.15]
[1625142780786,15.0,2129.0,2127.6,0.15]
[1625142780881,7.04495,2128.3,2127.6,0.15]
[1625142781014,7.04495,2128.3,2126.8,10.9369]
[1625142781016,11.29025,2128.3,2126.8,10.9369]
[1625142781125,26.29025,2128.3,2126.8,10.9369]
[1625142781267,0.06,2128.2,2126.6,10.99085797]
[1625142781363,0.06797337,2128.2,2126.6,11.0863]
[1625142781466,4.88555051,2128.4,2127.0,0.04150694]
[1625142781661,0.21930235,2128.3,2127.0,0.04150694]
[1625142781861,15.21930235,2128.3,2127.0,0.04150694]
[1625142782024,7.04665,2127.6,2127.0,0.04150694]
[1625142782413,14.25857588,2127.6,2127.0,0.04150694]
[1625142782564,17.78276018,2127.6,2127.0,0.04150694]
[1625142782663,10.73611018,2127.6,2127.0,0.04150694]
[1625142782868,7.21192588,2127.6,2127.0,0.04150694]
[1625142783415,7.21192588,2127.6,2126.3,0.15]
[1625142783569,7.0485,2127.1,2125.9,7.19739]
[1625142783666,0.04669341,2127.0,2125.9,7.19739]
[1625142783769,0.04669341,2127.0,2125.9,7.04739]
[1625142783865,0.04669341,2127.0,2126.1,0.15]
[1625142784069,0.04669341,2127.0,2125.8,10.5226]
[1625142784170,3.57469341,2127.0,2125.9,0.15]
[1625142784269,3.57469341,2127.0,2126.0,0.03734145]
[1625142785184,15.0,2126.9,2126.0,0.03734145]
[1625142785283,7.04993,2126.6,2126.0,0.03734145]
[1625142785380,15.0,2126.5,2126.0,0.03734145]
[1625142785474,20.045,2126.5,2126.0,0.03734145]
[1625142785628,3.5267,2126.2,2125.5,0.04702007]
[1625142785730,19.8178,2126.2,2125.5,0.04702007]
[1625142785877,0.15,2126.1,2125.5,0.04702007]
[1625142785978,1.2911,2126.2,2125.5,0.04702007]
[1625142786178,1.2911,2126.2,2125.0,0.03226735]
[1625142786179,3.52639,2126.4,2125.0,0.03226735]
[1625142786424,0.00696928,2126.3,2125.0,0.03226735]
[1625142786523,0.04702007,2126.0,2125.0,0.03226735]
[1625142787171,0.04702007,2126.0,2125.5,0.04922988]
[1625142787572,0.04702007,2126.0,2125.5,0.09482828]
[1625142787875,0.04702007,2126.0,2125.0,0.03226735]
[1625142787974,0.04702007,2126.0,2125.5,0.04811428]
[1625142789676,0.04702007,2126.0,2125.6,0.15]
[1625142790177,0.04702007,2126.0,2125.6,7.1989]
[1625142790378,2.007e-05,2126.0,2125.6,7.1989]
[1625142790482,2.007e-05,2126.0,2125.6,9.44087357]
[1625142791926,2.007e-05,2126.0,2125.6,9.39087357]
[1625142792121,2.007e-05,2126.0,2125.7,0.18]
[1625142792421,2.007e-05,2126.0,2125.8,0.15]
[1625142792774,2.007e-05,2126.0,2125.8,7.1977]
[1625142792926,2.007e-05,2126.0,2125.8,10.8494]
[1625142793172,2.007e-05,2126.0,2125.9,0.18]
[1625142793270,0.04669341,2127.0,2125.9,0.18]
[1625142793370,0.04669341,2127.0,2125.9,0.34773904]
[1625142793534,0.04669341,2127.0,2126.0,0.12919509]
[1625142793681,0.04669341,2127.0,2126.0,0.12]
[1625142793782,0.04669341,2127.0,2126.1,0.15]
[1625142793935,0.04669341,2127.0,2126.3,9.39415]
[1625142794033,0.04669341,2127.0,2126.5,0.15]
[1625142795133,0.04669341,2127.0,2126.5,3.918]
[1625142796019,0.04669341,2127.0,2126.5,4.2661]
[1625142798028,0.04669341,2127.0,2126.5,4.1161]
[1625142798171,0.04669341,2127.0,2126.5,0.3481]
[1625142799624,0.04669341,2127.0,2126.6,0.15]
[1625142802273,0.04669341,2127.0,2126.6,7.19515]
[1625142805461,0.04669341,2127.0,2126.6,0.15]
[1625142805664,0.04669341,2127.0,2126.7,52.69917335]
[1625142805811,0.04669341,2127.0,2126.7,0.15]
[1625142807175,0.04669341,2127.0,2126.5,0.3481]
[1625142808380,7.09500341,2127.0,2126.5,0.3481]
[1625142808732,0.04669341,2127.0,2126.5,0.3481]
[1625142808933,0.04669341,2127.0,2126.5,0.4981]
[1625142809891,0.04669341,2127.0,2126.5,7.54383]
[1625142810091,0.04669341,2127.0,2126.6,0.18]
[1625142810191,0.04669341,2127.0,2126.6,4.6376]
[1625142810281,0.04669341,2127.0,2126.7,0.15]
[1625142810838,9.341e-05,2127.0,2126.7,0.15]
[1625142810938,9.341e-05,2127.0,2126.8,7.04489]
[1625142811137,0.01,2127.1,2126.9,0.33]
[1625142812371,0.01,2127.1,2127.0,7.04385]
[1625142812624,0.01,2127.1,2127.0,7.29385]
[1625142814098,0.01,2127.1,2127.0,9.47582357]
[1625142814300,0.50500345,2128.4,2127.0,9.47582357]
[1625142814399,0.50500345,2128.4,2127.1,0.05121633]
[1625142814499,0.50500345,2128.4,2127.1,0.23121633]
[1625142814747,0.50500345,2128.4,2127.1,0.15]
[1625142814948,7.54835345,2128.4,2127.1,7.19387]
[1625142815274,7.04335,2128.4,2127.5,0.04922988]
[1625142815375,7.04335,2128.4,2127.5,3.45082988]
[1625142815630,0.0455984,2128.5,2127.5,3.45082988]
[1625142815878,0.0455984,2128.5,2127.6,2.43197357]
[1625142815980,0.0455984,2128.5,2128.0,7.04074]
[1625142816106,0.0455984,2128.5,2128.0,11.74404]
[1625142816205,0.0455984,2128.5,2128.0,4.8533]
[1625142818539,0.0455984,2128.5,2128.1,0.18]
[1625142818789,0.0455984,2128.5,2128.2,0.15]
[1625142818892,0.0455984,2128.5,2128.2,7.19002]
[1625142818992,0.0455984,2128.5,2128.2,0.15]
[1625142819088,6.95,2129.4,2128.2,0.15]
[1625142819289,6.95,2129.4,2128.2,2.36963007]
[1625142819389,6.95,2129.4,2128.3,0.06]
[1625142819588,6.95,2129.4,2128.4,0.15]
[1625142819940,6.95,2129.4,2128.4,9.53537]
[1625142820245,7.03935,2129.7,2128.4,9.53537]
[1625142820343,16.97292249,2130.0,2128.4,9.53537]
[1625142820440,16.97292249,2130.0,2128.5,0.04]
[1625142820577,16.97292249,2130.0,2128.6,0.15]
[1625142821429,7.03856,2129.9,2128.9,7.03814]
[1625142821532,16.97292249,2130.0,2128.9,7.03814]
[1625142821638,6.97232249,2130.0,2128.9,7.03814]
[1625142821884,6.97232249,2130.0,2129.0,0.15]
[1625142822033,6.97232249,2130.0,2129.0,4.2194]
[1625142822183,6.97232249,2130.0,2129.1,0.19]
[1625142822283,0.02232249,2130.0,2129.1,0.19]
[1625142822531,0.02232249,2130.0,2129.1,2.40963007]
[1625142822844,0.02232249,2130.0,2129.2,0.14]
[1625142822941,0.02232249,2130.0,2129.3,0.15]
[1625142823594,0.02232249,2130.0,2129.5,7.03583]
[1625142823690,0.02232249,2130.0,2129.5,10.67223]
[1625142823791,0.02232249,2130.0,2129.6,0.15]
[1625142823891,0.02232249,2130.0,2129.6,0.25]
[1625142824393,7.0352,2131.0,2129.6,0.25]
[1625142824493,7.0352,2131.0,2129.7,0.00719118]
[1625142824593,7.0352,2131.0,2129.8,0.15]
[1625142824744,0.00680445,2129.9,2129.8,0.15]
[1625142825131,3.20960445,2129.9,2129.1,6.179]
[1625142825228,3.20960445,2129.9,2129.1,8.179]
[1625142825327,10.15960445,2129.9,2129.1,8.179]
[1625142825528,10.15960445,2129.9,2129.1,6.179]
[1625142825729,10.15960445,2129.9,2129.7,4.69]
[1625142826027,10.15960445,2129.9,2129.2,0.19]
[1625142826127,10.15960445,2129.9,2129.2,0.15]
[1625142826383,0.00680445,2129.9,2129.3,2.21963007]
[1625142826481,0.00680445,2129.9,2129.3,2.39963007]
[1625142826581,0.00680445,2129.9,2129.3,5.88493007]
[1625142826682,0.00680445,2129.9,2129.4,0.15]
[1625142826778,0.00680445,2129.9,2129.4,0.33]
[1625142826981,0.00680445,2129.9,2129.6,7.03468]
[1625142827372,0.00680445,2129.9,2129.7,0.15]
[1625142828879,7.03606,2130.7,2129.7,0.15]
[1625142829624,7.03606,2130.7,2129.0,19.86061]
[1625142829765,11.74606,2130.7,2129.2,2.0]
[1625142829864,26.74606,2130.7,2130.2,0.00612807]
[1625142830062,26.74606,2130.7,2129.7,0.00673616]
[1625142830469,11.74606,2130.7,2129.7,0.00673616]
[1625142830872,3.51922,2130.6,2129.7,0.00673616]
[1625142831122,0.18,2130.5,2129.7,0.00673616]
[1625142831524,0.15,2130.4,2129.7,0.00673616]
[1625142831627,3.51949,2130.3,2129.7,0.00673616]
[1625142831781,10.2,2130.2,2129.7,0.00673616]
[1625142831950,15.0,2130.1,2129.7,0.00673616]
[1625142832081,18.2555,2130.1,2129.7,0.00673616]
[1625142832384,7.04062,2130.0,2129.7,0.00673616]
[1625142832486,23.52086,2129.9,2129.7,0.00673616]
[1625142832582,23.60086,2129.9,2129.7,0.00673616]
[1625142833433,18.60086,2129.9,2129.7,0.00673616]
[1625142833535,7.04226,2129.8,2129.7,0.00673616]
[1625142833785,7.04226,2129.8,2129.7,0.01307959]
[1625142835265,7.04226,2129.8,2129.2,0.00715853]
[1625142835767,10.53516,2129.8,2129.2,0.00715853]
[1625142835866,0.04,2129.7,2129.2,0.00715853]
[1625142836217,7.04086,2129.5,2129.2,0.00715853]
[1625142836470,0.06,2129.4,2129.2,0.00715853]
[1625142837119,10.31511,2129.6,2129.2,0.00715853]
[1625142837468,10.31511,2129.6,2128.2,0.00646964]
[1625142837621,11.08918,2128.9,2128.2,0.00646964]
[1625142838673,10.74608,2128.9,2128.2,0.00646964]
[1625142839974,4.0473,2128.9,2128.2,0.00646964]
[1625142840123,0.01015136,2129.2,2128.2,5.01146964]
[1625142840476,0.01015136,2129.2,2128.3,0.06]
[1625142840672,0.01015136,2129.2,2128.4,0.15]
[1625142841119,0.01015136,2129.2,2128.6,7.03897]
[1625142841426,0.01015136,2129.2,2128.7,0.15]
[1625142841519,0.01015136,2129.2,2128.7,4.2896]
[1625142841621,0.01015136,2129.2,2128.7,6.50923007]
[1625142841718,0.01015136,2129.2,2128.7,6.64923007]
[1625142841918,0.01015136,2129.2,2128.8,0.08]
[1625142842071,0.01015136,2129.2,2128.7,4.1396]
[1625142842171,0.01015136,2129.2,2128.9,7.18653]
[1625142842373,0.01015136,2129.2,2128.9,0.15]
[1625142842723,0.01015136,2129.2,2128.2,0.00646964]
[1625142842820,0.01015136,2129.2,2128.5,0.15]
[1625142844564,7.05097136,2129.2,2128.5,0.15]
[1625142844821,7.00097136,2129.2,2128.5,0.15]
[1625142845167,9.38734,2129.5,2128.5,3.6024]
[1625142845482,0.00715853,2129.7,2128.5,5.82203007]
[1625142845541,0.00715853,2129.7,2129.1,7.03739]
[1625142845638,0.00715853,2129.7,2129.1,11.69409]
[1625142845886,0.00715853,2129.7,2129.2,0.15]
[1625142846588,0.00715853,2129.7,2129.3,2.3779634]
[1625142846790,0.00715853,2129.7,2129.4,0.15]
[1625142847089,0.00715853,2129.7,2129.4,7.18649]
[1625142847782,0.00715853,2129.7,2129.4,9.5644534]
[1625142847933,0.00715853,2129.7,2129.5,0.04]
[1625142848031,0.00715853,2129.7,2129.6,7.03493]
[1625142848135,0.00715853,2129.7,2129.6,7.18493]
[1625142848229,0.00715853,2129.7,2129.6,11.64283]
[1625142848433,0.00715853,2129.7,2129.6,11.82283]
[1625142848532,0.00715853,2129.7,2129.6,14.2007934]
[1625142849635,0.11940718,2129.7,2129.6,14.2007934]
[1625142850373,0.11940718,2129.7,2129.6,16.2007934]
[1625142851324,0.11940718,2129.7,2129.6,18.2007934]
[1625142851773,0.11940718,2129.7,2129.6,38.2007934]
[1625142851926,0.11940718,2129.7,2129.6,18.2007934]
[1625142852237,0.00673616,2130.2,2129.6,18.2007934]
[1625142852340,0.00673616,2130.2,2129.9,7.0325]
[1625142852536,0.00673616,2130.2,2130.0,0.15]
[1625142852641,0.00673616,2130.2,2130.0,2.50298553]
[1625142853388,3.10787863,2131.4,2130.0,2.50298553]
[1625142853537,3.10787863,2131.4,2130.1,0.07479436]
[1625142853637,3.10787863,2131.4,2130.1,2.07479436]
[1625142853738,0.01,2131.3,2130.2,0.15]
[1625142854093,0.01,2131.3,2130.1,8.18273]
[1625142854237,0.01,2131.3,2130.2,2.50298553]
[1625142854339,0.01,2131.3,2130.2,6.56108553]
[1625142854890,3.06787863,2131.4,2130.2,6.56108553]
[1625142854990,3.06787863,2131.4,2130.2,4.2081]
[1625142855089,7.03355,2131.3,2130.2,4.2081]
[1625142855238,7.03355,2131.3,2130.7,53.50976479]
[1625142855892,7.03355,2131.3,2130.7,53.85786479]
[1625142855989,7.03355,2131.3,2130.7,0.3481]
[1625142856242,0.1,2131.2,2130.7,0.3481]
[1625142856342,4.0623,2131.2,2130.7,0.3481]
[1625142856443,3.9623,2131.2,2130.7,0.3481]
[1625142857183,7.03526,2131.0,2130.7,0.3481]
[1625142857283,7.03526,2131.0,2130.2,0.00612807]
[1625142858286,7.03526,2131.0,2130.9,0.00616691]
[1625142858533,7.03526,2131.0,2130.4,0.00654762]
[1625142858734,7.03526,2131.0,2130.4,0.00038071]
[1625142858833,10.55336,2131.0,2130.4,0.00038071]
[1625142859131,7.0357,2130.7,2130.4,0.00038071]
[1625142861542,10.55393,2130.7,2130.4,0.00038071]
[1625142861691,7.03645,2130.6,2130.4,0.00038071]
[1625142862347,9.38035,2131.1,2130.4,0.00038071]
[1625142862446,11.72693,2131.5,2130.4,0.00038071]
[1625142862550,11.72693,2131.5,2130.5,0.15]
[1625142862898,10.10695554,2131.4,2130.5,0.15]
[1625142863193,3.07404554,2131.4,2130.5,0.15]